[Event "Prague Open 2024"]
[Site "Prague"]
[Date "2024.01.08"]
[Round "5.3"]
[White "Neuman, Petr"]
[Black "Tobak, Mikhail"]
[Result "0-1"]
[ECO "A26"]
[WhiteElo "2398"]
[BlackElo "2288"]
[Annotator "ChessBase"]
[PlyCount "72"]
[EventDate "2024.01.02"]
[EventType "swiss"]
[EventCountry "CZE"]
[SourceTitle "playchess.com"]
[Source "ChessBase"]
[SourceQuality "1"]
[TimeControl "40/5400+30:1800+30"]

1. c4 e5 2. Nc3 Nc6 3. g3 g6 4. Bg2 Bg7 5. d3 d6 6. e3 f5 7. Nge2 Nf6 8. O-O O-O 9. b3 h5 10. e4 f4 11. gxf4 Ng4 12. f3 exf4 13. d4 Ne3 14. Bxe3 fxe3 15. Nd5 Qh4 16. Qd3 Nxd4 17. Nxd4 c6 18. Nxe3 Be5 19. f4 Rxf4 20. Rxf4 Qxf4 21. Nf1 Bg4 22. Rd1 Bxd1 23. Qxd1 Rf8 24. Nf3 Qxe4 25. Nxe5 Qxe5 26. Qd3 Kg7 27. h3 Rf4 28. Ne3 Qd4 29. Qxd4+ Rxd4 30. b4 Rd3 31. Kf2 Rd2+ 32. Kg3 Rxa2 33. b5 cxb5 34. cxb5 Ra3 35. Kf4 Ra4+ 36. Kg5 Ra5 0-1

[Event "Prague Open 2024"]
[Site "Prague"]
[Date "2024.01.08"]
[Round "5.4"]
[White "Grave, Jacob Templen"]
[Black "Pyrig, Roman"]
[Result "1/2-1/2"]
[ECO "D30"]
[WhiteElo "2296"]
[BlackElo "2154"]
[Annotator "RC"]
[PlyCount "76"]
[EventDate "2024.01.02"]
[EventType "swiss"]
[EventCountry "CZE"]
[SourceTitle "playchess.com"]
[Source "ChessBase"]
[SourceQuality "1"]
[TimeControl "40/5400+30:1800+30"]

1. d4 {[%emt 0:00:03]} d5 {[%emt 0:01:00]} 2. c4 {[%emt 0:00:26]} e6 {[%emt 0:00:10]} 3. Nf3 {[%emt 0:03:09]} Nf6 {[%emt 0:00:21]} 4. g3 {[%emt 0:00:07]} Bb4+ {[%emt 0:08:37]} 5. Nbd2 {[%emt 0:08:33]} dxc4 {[%emt 0:02:23]} 6. Bg2 {[%emt 0:00:09]} c6 {[%emt 0:02:30]} 7. a3 {[%emt 0:16:03]} Ba5 {[%emt 0:19:12]} 8. Qc2 {[%emt 0:05:30]} b5 {[%emt 0:02:37]} 9. O-O {[%emt 0:02:10]} Bb7 {[%emt 0:04:56]} 10. b3 {[%emt 0:06:12]} Bxd2 {[%emt 0:05:41]} 11. Nxd2 {[%emt 0:15:20]} cxb3 {[%emt 0:28:28]} 12. Nxb3 {[%emt 0:00:08]} Nbd7 {[%emt 0:00:03]} 13. a4 {[%emt 0:01:38]} b4 {[%emt 0:00:20]} 14. a5 {[%emt 0:01:31]} Rc8 {[%emt 0:03:32]} 15. Bd2 {[%emt 0:02:14]} Nd5 {[%emt 0:00:27]} 16. a6 {[%emt 0:14:58]} Ba8 {[%emt 0:00:02]} 17. e4 {[%emt 0:00:04]} Nc3 {[%emt 0:00:08]} 18. Bxc3 {[%emt 0:00:22]} bxc3 {[%emt 0:00:02]} 19. e5 {[%emt 0:02:02]} O-O {[%emt 0:03:21]} 20. Qxc3 {[%emt 0:06:45]} c5 {[%emt 0:02:11]} 21. Bb7 {[%emt 0:02:11]} Rc7 {[%emt 0:03:54]} 22. dxc5 {[%emt 0:00:47]} Bxb7 {[%emt 0:01:48]} 23. axb7 {[%emt 0:00:02]} Rxb7 {[%emt 0:00:09]} 24. c6 {[%emt 0:02:32]} Rc7 {[%emt 0:00:01]} 25. Rfd1 {[%emt 0:00:29]} Qe7 {[%emt 0:00:02]} 26. Qa5 {[%emt 0:02:55]} Nb8 {[%emt 0:01:01]} 27. Nd4 {[%emt 0:02:37]} Nxc6 {[%emt 0:01:07]} 28. Nxc6 {[%emt 0:00:07]} Rxc6 {[%emt 0:00:02]} 29. Qxa7 {[%emt 0:00:08]} Qg5 {[%emt 0:04:18]} 30. Qd4 {[%emt 0:00:20]} h5 {[%emt 0:00:29]} 31. h4 {[%emt 0:01:03]} Qf5 {[%emt 0:00:05]} 32. Ra2 {[%emt 0:01:09]} Rfc8 {[%emt 0:00:21]} 33. Re2 {[%emt 0:01:08]} Rc4 {[%emt 0:01:02]} 34. Qd3 {[%emt 0:01:01]} Qh3 {[%emt 0:02:30]} 35. Red2 {[%emt 0:02:05]} Rc1 {[%emt 0:02:49]} 36. Qf3 {[%emt 0:01:04]} Rxd1+ {[%emt 0:00:09]} 37. Rxd1 {[%emt 0:00:08]} g6 {[%emt 0:00:06]} 38. Qf4 {[%emt 0:00:48]} Qf5 {[%emt 0:00:13]} 1/2-1/2

[Event "Prague Open 2024"]
[Site "Prague"]
[Date "2024.01.08"]
[Round "5.5"]
[White "Wang, Yukun"]
[Black "Xie, Felix"]
[Result "1/2-1/2"]
[ECO "B40"]
[WhiteElo "2117"]
[BlackElo "2249"]
[Annotator "RC"]
[PlyCount "79"]
[EventDate "2024.01.02"]
[EventType "swiss"]
[EventCountry "CZE"]
[SourceTitle "playchess.com"]
[Source "ChessBase"]
[SourceQuality "1"]
[TimeControl "40/5400+30:1800+30"]

1. e4 {[%emt 0:03:44]} c5 {[%emt 0:00:11]} 2. Nf3 {[%emt 0:00:22]} e6 {[%emt 0:00:06]} 3. d4 {[%emt 0:00:25]} cxd4 {[%emt 0:00:08]} 4. Nxd4 {[%emt 0:00:02]} Nf6 {[%emt 0:00:09]} 5. Nc3 {[%emt 0:00:04]} Nc6 {[%emt 0:00:07]} 6. Ndb5 {[%emt 0:00:12]} Bc5 {[%emt 0:00:08]} 7. Bf4 {[%emt 0:00:37]} O-O {[%emt 0:00:06]} 8. Bc7 {[%emt 0:00:50]} Qe7 {[%emt 0:00:06]} 9. Bd6 {[%emt 0:00:03]} Bxd6 {[%emt 0:00:06]} 10. Qxd6 {[%emt 0:00:09]} Qd8 {[%emt 0:00:01]} 11. Qd2 {[%emt 0:06:33]} d5 {[%emt 0:01:25]} 12. exd5 {[%emt 0:01:47]} Nxd5 {[%emt 0:00:11]} 13. Nxd5 {[%emt 0:01:03]} exd5 {[%emt 0:00:20]} 14. O-O-O {[%emt 0:00:21]} a6 {[%emt 0:02:09]} 15. Nd4 {[%emt 0:04:28]} Qf6 {[%emt 0:00:29]} 16. f3 {[%emt 0:10:13]} Re8 {[%emt 0:09:50]} 17. h4 {[%emt 0:11:50]} Bd7 {[%emt 0:10:10]} 18. Nb3 {[%emt 0:05:43]} Rac8 {[%emt 0:11:31]} 19. a3 {[%emt 0:04:18]} Ne5 {[%emt 0:06:36]} 20. Kb1 {[%emt 0:06:42]} h6 {[%emt 0:21:44]} 21. Nd4 {[%emt 0:02:02]} Bf5 {[%emt 0:04:07]} 22. Nxf5 {[%emt 0:02:28]} Qxf5 {[%emt 0:00:07]} 23. h5 {[%emt 0:05:51]} Rc6 {[%emt 0:08:20]} 24. Rh4 {[%emt 0:02:44]} Nc4 {[%emt 0:03:49]} 25. Bxc4 {[%emt 0:04:04]} dxc4 {[%emt 0:02:28]} 26. Qc3 {[%emt 0:01:48]} b5 {[%emt 0:00:35]} 27. Rg4 {[%emt 0:04:17]} Qf6 {[%emt 0:03:37]} 28. Rdd4 {[%emt 0:01:17]} Rce6 {[%emt 0:02:09]} 29. Ka2 {[%emt 0:02:52]} Re3 {[%emt 0:01:26]} 30. Qd2 {[%emt 0:06:14]} Qe6 {[%emt 0:08:52]} 31. Rge4 {[%emt 0:01:18]} Rxe4 32. Rxe4 {[%emt 0:00:02]} Qc6 {[%emt 0:01:24]} 33. Rd4 {[%emt 0:02:27]} Qc5 {[%emt 0:02:03]} 34. Rd5 {[%emt 0:00:56]} Qg1 {[%emt 0:01:39]} 35. Rd8 {[%emt 0:00:25]} Rxd8 {[%emt 0:00:03]} 36. Qxd8+ {[%emt 0:00:03]} Kh7 {[%emt 0:00:03]} 37. Qd7 {[%emt 0:00:15]} Qxg2 {[%emt 0:00:36]} 38. Qf5+ {[%emt 0:00:02]} Kg8 {[%emt 0:00:09]} 39. Qc8+ {[%emt 0:00:04]} Kh7 {[%emt 0:00:04]} 40. Qf5+ {[%emt 0:00:02]} 1/2-1/2

[Event "Prague Open 2024"]
[Site "Prague"]
[Date "2024.01.08"]
[Round "5.6"]
[White "Krstic, Andrija Marko"]
[Black "Eliseev, Sergey"]
[Result "0-1"]
[ECO "D10"]
[WhiteElo "2113"]
[BlackElo "2232"]
[Annotator "RC"]
[PlyCount "159"]
[EventDate "2024.01.02"]
[EventType "swiss"]
[EventCountry "CZE"]
[SourceTitle "playchess.com"]
[Source "ChessBase"]
[SourceQuality "1"]
[TimeControl "40/5400+30:1800+30"]

1. d4 {[%emt 0:00:03]} d5 {[%emt 0:00:06]} 2. c4 {[%emt 0:00:07]} c6 {[%emt 0:00:04]} 3. Nc3 {[%emt 0:00:03]} Nf6 {[%emt 0:00:08]} 4. e3 {[%emt 0:00:05]} Bf5 {[%emt 0:00:44]} 5. cxd5 {[%emt 0:00:13]} cxd5 {[%emt 0:00:05]} 6. Qb3 {[%emt 0:00:04]} Nc6 {[%emt 0:00:09]} 7. Qxb7 {[%emt 0:00:30]} Bd7 {[%emt 0:00:02]} 8. Qb3 {[%emt 0:00:15]} Rb8 {[%emt 0:00:07]} 9. Qd1 {[%emt 0:00:06]} e5 {[%emt 0:00:08]} 10. dxe5 {[%emt 0:00:49]} Nxe5 {[%emt 0:00:02]} 11. Nf3 {[%emt 0:00:16]} Bd6 {[%emt 0:17:58]} 12. Be2 {[%emt 0:01:52]} Nxf3+ {[%emt 0:01:32]} 13. Bxf3 {[%emt 0:00:19]} Qc7 {[%emt 0:00:19]} 14. h3 {[%emt 0:06:03]} O-O {[%emt 0:00:32]} 15. O-O {[%emt 0:06:57]} Rfd8 {[%emt 0:01:03]} 16. Qe2 {[%emt 0:02:19]} Bh2+ {[%emt 0:01:38]} 17. Kh1 {[%emt 0:00:24]} Be5 {[%emt 0:00:03]} 18. Rd1 {[%emt 0:04:02]} Bxc3 {[%emt 0:14:35]} 19. bxc3 {[%emt 0:00:05]} Qxc3 {[%emt 0:14:00]} 20. Bd2 {[%emt 0:00:11]} Qa3 {[%emt 0:00:32]} 21. Be1 {[%emt 0:02:36]} Bb5 {[%emt 0:08:13]} 22. Qd2 {[%emt 0:01:32]} Rdc8 {[%emt 0:05:46]} 23. Rdc1 {[%emt 0:12:17]} Bc4 {[%emt 0:01:35]} 24. Qd4 {[%emt 0:01:41]} Rc6 {[%emt 0:09:31]} 25. Bc3 {[%emt 0:05:02]} Rbc8 {[%emt 0:04:57]} 26. Bb2 {[%emt 0:02:24]} Qe7 {[%emt 0:00:01]} 27. a4 {[%emt 0:05:16]} h6 {[%emt 0:02:05]} 28. a5 {[%emt 0:02:16]} Kh7 {[%emt 0:01:59]} 29. Bg4 {[%emt 0:01:52]} Rg8 {[%emt 0:00:51]} 30. Bf5+ {[%emt 0:00:30]} Kh8 {[%emt 0:03:28]} 31. Rc2 {[%emt 0:10:40]} Ne4 {[%emt 0:06:38]} 32. Rac1 {[%emt 0:03:08]} Nd6 {[%emt 0:00:03]} 33. Bd3 {[%emt 0:04:03]} Ra6 {[%emt 0:00:01]} 34. Bxc4 {[%emt 0:04:13]} dxc4 {[%emt 0:00:17]} 35. Ba3 {[%emt 0:01:38]} Rd8 {[%emt 0:02:14]} 36. Rd2 {[%emt 0:08:49]} Qc7 {[%emt 0:03:05]} 37. Bb4 {[%emt 0:04:33]} Rc6 {[%emt 0:01:06]} 38. Bc3 {[%emt 0:05:50]} f6 {[%emt 0:00:13]} 39. Qf4 {[%emt 0:00:58]} Nf7 40. Rxd8+ {[%emt 0:00:36]} Qxd8 {[%emt 0:03:40]} 41. Qe4 {[%emt 0:07:19]} Rc8 {[%emt 0:04:58]} 42. Qe6 {[%emt 0:01:55]} Ng5 {[%emt 0:05:31]} 43. Qf5 {[%emt 0:00:19]} Qe8 {[%emt 0:02:20]} 44. Bd4 {[%emt 0:01:41]} Rc7 {[%emt 0:04:19]} 45. Qd5 {[%emt 0:02:01]} Qc8 {[%emt 0:01:20]} 46. Rc3 {[%emt 0:02:31]} a6 {[%emt 0:02:36]} 47. Kg1 {[%emt 0:01:16]} Ne6 {[%emt 0:00:56]} 48. Bb6 {[%emt 0:01:03]} Rc6 {[%emt 0:00:00]} 49. Kf1 {[%emt 0:05:02]} Nf8 {[%emt 0:00:01]} 50. Qd8 {[%emt 0:01:05]} Qxd8 {[%emt 0:00:30]} 51. Bxd8 {[%emt 0:00:06]} Nd7 {[%emt 0:02:50]} 52. Ke2 {[%emt 0:01:28]} Kg8 {[%emt 0:00:12]} 53. Rc1 {[%emt 0:01:44]} Kf7 {[%emt 0:02:00]} 54. Rb1 {[%emt 0:00:22]} Nc5 {[%emt 0:03:14]} 55. Bb6 {[%emt 0:00:41]} Nb3 {[%emt 0:01:55]} 56. Rb2 {[%emt 0:04:28]} c3 {[%emt 0:01:09]} 57. Rc2 {[%emt 0:00:09]} Na1 {[%emt 0:00:01]} 58. Rc1 {[%emt 0:00:05]} Nb3 {[%emt 0:00:09]} 59. Rc2 {[%emt 0:00:05]} Na1 {[%emt 0:00:04]} 60. Rc1 {[%emt 0:00:03]} c2 {[%emt 0:00:17]} 61. Kd3 {[%emt 0:00:55]} f5 {[%emt 0:03:18]} 62. Bd4 {[%emt 0:00:43]} Nb3 {[%emt 0:00:04]} 63. Rxc2 {[%emt 0:00:04]} Nc1+ {[%emt 0:00:12]} 64. Kd2 {[%emt 0:00:11]} Nb3+ {[%emt 0:00:02]} 65. Kd3 {[%emt 0:00:10]} Rxc2 {[%emt 0:00:32]} 66. Kxc2 {[%emt 0:00:04]} Nxa5 {[%emt 0:00:04]} 67. Bc3 {[%emt 0:01:43]} Nb7 {[%emt 0:01:24]} 68. Kb3 {[%emt 0:01:08]} g5 {[%emt 0:00:06]} 69. Kc4 {[%emt 0:00:21]} Ke6 {[%emt 0:00:05]} 70. f3 {[%emt 0:01:15]} h5 {[%emt 0:01:31]} 71. g3 {[%emt 0:00:49]} Nd6+ {[%emt 0:02:38]} 72. Kc5 {[%emt 0:00:29]} a5 {[%emt 0:01:56]} 73. Bb2 {[%emt 0:03:37]} g4 {[%emt 0:00:26]} 74. hxg4 {[%emt 0:00:56]} hxg4 {[%emt 0:00:00]} 75. fxg4 {[%emt 0:00:20]} fxg4 {[%emt 0:00:01]} 76. Kd4 {[%emt 0:01:42]} Kf5 {[%emt 0:00:00]} 77. Kc5 {[%emt 0:03:49]} Ne4+ {[%emt 0:00:01]} 78. Kb5 {[%emt 0:00:05]} Nxg3 {[%emt 0:00:27]} 79. Kxa5 {[%emt 0:00:03]} Ne4 {[%emt 0:01:12]} 80. Kb5 0-1

[Event "Prague Open 2024"]
[Site "Prague"]
[Date "2024.01.08"]
[Round "5.7"]
[White "Lilliehook, Victor"]
[Black "Stanojevic, Ilija"]
[Result "0-1"]
[ECO "B32"]
[WhiteElo "1934"]
[BlackElo "2206"]
[Annotator "RC"]
[PlyCount "112"]
[EventDate "2024.01.02"]
[EventType "swiss"]
[EventCountry "CZE"]
[SourceTitle "playchess.com"]
[Source "ChessBase"]
[SourceQuality "1"]
[TimeControl "40/5400+30:1800+30"]

1. e4 c5 2. Nf3 Nc6 3. d4 cxd4 4. Nxd4 e5 5. Nb5 d6 6. N5c3 Nf6 7. Bg5 Be7 8. Bxf6 Bxf6 9. Nd5 O-O 10. Nbc3 Be6 11. Bc4 Bg5 12. O-O Rc8 13. Bb3 Nd4 14. Qd3 a6 15. Rad1 Kh8 16. f4 Nxb3 17. axb3 exf4 18. Nxf4 Bxf4 19. Rxf4 Qg5 20. Rf2 Rfd8 21. Nd5 Qe5 22. c4 b5 23. Qd4 Rc5 24. Ne3 bxc4 25. bxc4 a5 26. Rfd2 h5 27. b3 Rb8 28. Rb2 Qxd4 29. Rxd4 a4 30. b4 a3 31. Ra2 Rxb4 32. Rxa3 Bxc4 33. Ra1 g6 34. Re1 Ra4 35. Rxd6 Be6 36. Nd1 Kg7 37. Nf2 Rc2 38. Rd3 Raa2 39. Rf3 Bg4 40. Nxg4 Rxg2+ 41. Kh1 hxg4 42. Rg3 Rxh2+ 43. Kg1 f5 44. Rf1 Rh5 45. Rb1 Rah2 46. Rb7+ Kf6 47. exf5 gxf5 48. Rb8 R5h3 49. Rxh3 Rxh3 50. Rf8+ Kg5 51. Rg8+ Kf4 52. Ra8 Rb3 53. Ra5 Kg3 54. Rxf5 Rb1+ 55. Rf1 Rxf1+ 56. Kxf1 Kh2 0-1

[Event "Prague Open 2024"]
[Site "Prague"]
[Date "2024.01.08"]
[Round "5.8"]
[White "Mohylnyi, Stepan"]
[Black "Piotraschke, Jens"]
[Result "1-0"]
[ECO "B19"]
[WhiteElo "2180"]
[BlackElo "2056"]
[Annotator "RC"]
[PlyCount "123"]
[EventDate "2024.01.02"]
[EventType "swiss"]
[EventCountry "CZE"]
[SourceTitle "playchess.com"]
[Source "ChessBase"]
[SourceQuality "1"]
[TimeControl "40/5400+30:1800+30"]

1. e4 c6 2. d4 d5 3. Nc3 dxe4 4. Nxe4 Bf5 5. Ng3 Bg6 6. h4 h6 7. Nf3 Nd7 8. h5 Bh7 9. Bd3 Bxd3 10. Qxd3 Qc7 11. Bd2 e6 12. Qe2 Ngf6 13. c4 Bd6 14. Nf5 O-O 15. Nxd6 Qxd6 16. Rh4 Rfe8 17. Bc3 b5 18. Ne5 bxc4 19. Qxc4 Nd5 20. Kf1 Rac8 21. Re1 Qe7 22. g3 N7b6 23. Qb3 c5 24. dxc5 Qxc5 25. Bd4 Qc2 26. Kg2 Qxb3 27. axb3 f6 28. Nd3 Kf7 29. Ra1 Rc7 30. b4 e5 31. Bc5 e4 32. Nf4 e3 33. fxe3 Nxe3+ 34. Kf3 Nec4 35. Rh2 Ne5+ 36. Kg2 Rd8 37. Kh3 Nd3 38. Nxd3 Rxd3 39. Re2 Rd5 40. Kh4 Rdd7 41. b3 Nc8 42. Re3 Ne7 43. g4 Nd5 44. Rd3 Nb6 45. Rxd7+ Rxd7 46. Ra6 Rb7 47. Kg3 Rd7 48. Bxb6 axb6 49. Rxb6 f5 50. gxf5 Rd3+ 51. Kf4 Rxb3 52. b5 Rb1 53. Ke5 Re1+ 54. Kd5 Rf1 55. Re6 Rxf5+ 56. Re5 Rf1 57. Kc6 Kf6 58. Rc5 Re1 59. b6 g6 60. hxg6 Kxg6 61. b7 Re8 62. Kb6 1-0

[Event "Prague Open 2024"]
[Site "Prague"]
[Date "2024.01.08"]
[Round "5.9"]
[White "Poetsch, Hagen"]
[Black "Tolmacevs, Artjoms"]
[Result "1-0"]
[ECO "B90"]
[WhiteElo "2471"]
[BlackElo "1928"]
[Annotator "TA"]
[PlyCount "79"]
[EventDate "2024.01.02"]
[EventType "swiss"]
[EventCountry "CZE"]
[SourceTitle "playchess.com"]
[Source "ChessBase"]
[SourceQuality "1"]
[TimeControl "40/5400+30:1800+30"]

{[%evp 10,79,28,13,24,20,42,40,40,23,14,12,40,12,69,85,143,140,144,147,152,166,218,201,216,209,239,231,350,351,493,495,461,435,556,579,510,376,418,416,438,340,480,456,467,447,452,450,546,340,348,248,302,223,454,431,979,973,971,950,1472,1447,2292,1085,29985,29986,29991,29992,29997,29998,29998,29999]} 1. e4 {[%emt 0:00:02]} c5 {[%emt 0:00:05]} 2. Nf3 {[%emt 0:00:07]} d6 {[%emt 0:00:03]} 3. d4 {[%emt 0:00:05]} cxd4 {[%emt 0:00:05]} 4. Nxd4 {[%emt 0:00:05]} Nf6 {[%emt 0:00:14]} 5. Nc3 {[%emt 0:00:05]} a6 {[%emt 0:00:04]} 6. Nb3 {[%emt 0:00:06]} e6 {[%emt 0:05:12] B90: Sicilian Najdorf: Unusual White 6th moves, 6 Be3 Ng4 and 6 Be3 e5.} 7. g4 {[%emt 0:00:05][%cal Bg2g4,Bg4g5][%mdl 32]} Be7 {[%emt 0:01:20]} 8. g5 {[%emt 0:00:59]} Nfd7 {[%emt 0:00:17] White is slightly better.} 9. h4 {[%emt 0:02:05]} b5 {[%emt 0:02:32]} 10. a3 {[%emt 0:02:30]} Bb7 {[%emt 0:00:47] [#]} 11. Bf4 $146 {[%emt 0:00:56]} ({Predecessor:} 11. Be3 Ne5 12. f4 Nc4 13. Bxc4 bxc4 14. Nd4 Nd7 15. h5 Nc5 16. Qf3 Qb6 17. Rb1 {½-½ Bodnaruk,A (2364)-Obolentseva,A (2313) RUS GP Blitz Final (Women) 2022 (3)}) 11... e5 {[%emt 0:09:39]} (11... Nc6 $11) 12. Be3 $14 {[%emt 0:00:19]} f5 {[%emt 0:06:22]} (12... Nc6 $142) 13. Nd5 $16 {[%emt 0:04:16]} f4 {[%emt 0:10:03]} 14. Bd2 $36 {[%emt 0:02:38][%mdl 2048] And now Ba5 would win. Black is under strong pressure.} Nb6 {[%emt 0:07:57]} 15. Ba5 {[%emt 0:10:23] White is much more active.} Bxd5 {[%emt 0:01:22]} (15... N8d7 $142) 16. exd5 $18 {[%emt 0:00:07]} N8d7 {[%emt 0:00:07]} 17. Bd3 {[%emt 0:08:15]} (17. Bh3 $6 Qc7 $16) 17... g6 {[%emt 0:12:13]} 18. h5 {[%emt 0:06:37][%cal Bh4h5,Bh5g6,Bg6h7][%mdl 32]} Bxg5 {[%emt 0:06:09]} (18... Rg8 $142 19. Nd2 Qc8) 19. hxg6 {[%emt 0:01:03] g7 would be deadly.} Qe7 {[%emt 0:04:04]} (19... f3 $142 20. Qxf3 Qf6 21. Qxf6 Bxf6 22. gxh7 Nc4) 20. Rxh7 {[%emt 0:07:48]} (20. gxh7 O-O-O 21. Bf5 Kb7 22. Bxb6 Nxb6 23. Na5+ Ka8 $18) 20... Rxh7 {[%emt 0:00:37]} 21. gxh7 {[%emt 0:00:11]} O-O-O {[%emt 0:00:08]} 22. Bf5 {[%emt 0:09:24]} Kb7 {[%emt 0:04:09]} 23. Qg4 {[%emt 0:06:26]} Bf6 {[%emt 0:04:30]} 24. O-O-O {[%emt 0:00:41]} Bh8 {[%emt 0:02:32]} 25. Re1 {[%emt 0:07:05]} Rf8 {[%emt 0:05:13]} (25... Qf7 $142 26. Rh1 Rf8) 26. Bxb6 {[%emt 0:11:39]} Nxb6 {[%emt 0:00:06] Black is weak on the light squares} 27. Na5+ {[%emt 0:00:07]} Kc7 {[%emt 0:00:07]} 28. Be4 {[%emt 0:02:05]} (28. Nc6 Qf7 $18) 28... Nd7 {[%emt 0:02:51]} 29. Qh3 {[%emt 0:00:41]} f3 {[%emt 0:01:38]} 30. Rg1 {[%emt 0:03:42] aiming for Rg8.} ({Less strong is} 30. Bxf3 Qg5+ 31. Kd1 Nc5 $16) 30... Qf6 {[%emt 0:00:49]} 31. Nb3 {[%emt 0:02:07] Kb1 is the strong threat.} Nb6 $2 {[%emt 0:09:01]} (31... Qf4+ 32. Nd2 Nf6 33. Bxf3 e4) 32. Nd2 {[%emt 0:00:58]} Nc4 {[%emt 0:00:35]} (32... Nd7 $142 33. Rg6 Qf7 34. Qxf3 Qxf3 35. Nxf3 Nf6) 33. Nxc4 {[%emt 0:00:38]} (33. Bxf3 $2 {is the wrong capture.} Qf4 34. Rd1 Nxd2 35. Rxd2 Qxf3 36. Qxf3 Rxf3 $19) 33... bxc4 {[%emt 0:00:01]} 34. Rg8 {[%emt 0:00:59] Strongly threatening Qf1.} c3 {[%emt 0:02:09]} 35. Kb1 {[%emt 0:02:18] Hoping for Qf1.} cxb2 {[%emt 0:00:34] [#]} 36. Qxf3 $1 {[%emt 0:02:03][%mdl 512]} Qh6 {[%emt 0:01:21]} (36... Qxf3 37. Bxf3) 37. Qc3+ {[%emt 0:00:12] White mates.} (37. Qxf8 $2 {is a self mate.} Qc1+ 38. Ka2 b1=Q#) 37... Kd7 {[%emt 0:00:39] [#]} 38. Bf5+ $1 {[%emt 0:01:33][%mdl 512]} Rxf5 {[%emt 0:01:05]} (38... Ke7 39. Qc7+) 39. Qc6+ {[%emt 0:00:09]} Ke7 {[%emt 0:00:07]} 40. Qe8+ {[%emt 0:00:06] Black did not feel at home in the position after the opening. Magnificent play by Poetsch!   Weighted Error Value: White=0.34/Black=0.60} 1-0

[Event "Prague Open 2024"]
[Site "Prague"]
[Date "2024.01.08"]
[Round "5.10"]
[White "Taborsky, Rostislav"]
[Black "Ivanov, Mike"]
[Result "0-1"]
[ECO "A51"]
[WhiteElo "2100"]
[BlackElo "2356"]
[Annotator "RC"]
[PlyCount "120"]
[EventDate "2024.01.02"]
[EventType "swiss"]
[EventCountry "CZE"]
[SourceTitle "playchess.com"]
[Source "ChessBase"]
[SourceQuality "1"]
[TimeControl "40/5400+30:1800+30"]

1. d4 {[%emt 0:26:31]} Nf6 {[%emt 0:00:33]} 2. c4 {[%emt 0:00:17]} e5 {[%emt 0:00:09]} 3. e3 {[%emt 0:00:43]} Bb4+ {[%emt 0:05:53]} 4. Bd2 {[%emt 0:00:35]} Bxd2+ {[%emt 0:00:14]} 5. Qxd2 {[%emt 0:00:30]} exd4 {[%emt 0:02:12]} 6. exd4 {[%emt 0:02:40]} O-O {[%emt 0:10:04]} 7. Bd3 {[%emt 0:06:05]} d5 {[%emt 0:02:48]} 8. Nc3 {[%emt 0:03:07]} Be6 {[%emt 0:17:28]} 9. cxd5 {[%emt 0:11:27]} Bxd5 {[%emt 0:00:30]} 10. f3 {[%emt 0:00:36]} Nbd7 {[%emt 0:10:04]} 11. Nge2 {[%emt 0:03:59]} Nb6 {[%emt 0:01:14]} 12. O-O-O {[%emt 0:04:28]} Re8 {[%emt 0:02:16]} 13. Nf4 {[%emt 0:03:23]} Qd6 {[%emt 0:01:35]} 14. Rhe1 {[%emt 0:02:28]} Nc4 {[%emt 0:09:29]} 15. Bxc4 {[%emt 0:00:22]} Bxc4 {[%emt 0:00:02]} 16. d5 {[%emt 0:02:40]} Rxe1 {[%emt 0:07:43]} 17. Rxe1 {[%emt 0:00:05]} Rd8 {[%emt 0:00:07]} 18. b3 {[%emt 0:09:05]} Ba6 {[%emt 0:00:19]} 19. Kb2 {[%emt 0:03:13]} b5 {[%emt 0:05:33]} 20. Qd4 {[%emt 0:03:29]} c6 {[%emt 0:04:48]} 21. b4 {[%emt 0:06:47]} Bc8 {[%emt 0:01:53]} 22. a3 {[%emt 0:02:35]} h6 {[%emt 0:00:34]} 23. Qe5 {[%emt 0:02:49]} Qd7 {[%emt 0:04:47]} 24. Rd1 {[%emt 0:00:48]} Re8 {[%emt 0:02:43]} 25. dxc6 {[%emt 0:00:54]} Rxe5 {[%emt 0:02:14]} 26. cxd7 {[%emt 0:00:04]} Bxd7 {[%emt 0:00:07]} 27. Nfd5 {[%emt 0:01:30]} Be6 {[%emt 0:04:46]} 28. Nxf6+ {[%emt 0:01:24]} gxf6 {[%emt 0:00:02]} 29. Rd2 {[%emt 0:00:59]} Bc4 {[%emt 0:01:35]} 30. Ne4 {[%emt 0:00:55]} Kg7 {[%emt 0:01:03]} 31. Nc5 {[%emt 0:00:37]} Re3 {[%emt 0:01:15]} 32. Rf2 {[%emt 0:00:47]} Kg6 {[%emt 0:00:40]} 33. f4 {[%emt 0:00:31]} Kf5 {[%emt 0:00:28]} 34. g3 {[%emt 0:00:09]} h5 {[%emt 0:00:16]} 35. Rc2 {[%emt 0:00:10]} h4 {[%emt 0:01:20]} 36. gxh4 {[%emt 0:00:44]} Rh3 {[%emt 0:00:33]} 37. a4 {[%emt 0:00:42]} Rxh4 {[%emt 0:00:25]} 38. axb5 {[%emt 0:00:36]} Bxb5 {[%emt 0:00:04]} 39. Nb3 {[%emt 0:00:24]} Kxf4 {[%emt 0:00:23]} 40. Rf2+ {[%emt 0:00:34]} Ke5 {[%emt 0:01:25]} 41. Ka3 {[%emt 0:04:09]} f5 {[%emt 0:01:44]} 42. Nd2 {[%emt 0:01:10]} Rh3+ {[%emt 0:03:10]} 43. Kb2 {[%emt 0:00:08]} Bc6 {[%emt 0:11:54]} 44. Nc4+ {[%emt 0:01:40]} Ke6 {[%emt 0:00:10]} 45. Re2+ {[%emt 0:09:00]} Be4 {[%emt 0:01:54]} 46. b5 {[%emt 0:00:47]} Kd5 {[%emt 0:01:04]} 47. Ne3+ {[%emt 0:00:08]} Kd4 {[%emt 0:00:42]} 48. Nd1 {[%emt 0:01:29]} Kc4 {[%emt 0:01:17]} 49. Rf2 {[%emt 0:01:43]} Kb4 {[%emt 0:05:50]} 50. Kc1 {[%emt 0:00:42]} Kxb5 {[%emt 0:01:27]} 51. Kd2 {[%emt 0:00:15]} Kb4 {[%emt 0:01:09]} 52. Ne3 {[%emt 0:00:34]} Rh5 {[%emt 0:00:37]} 53. h4 {[%emt 0:01:59]} a5 {[%emt 0:01:45]} 54. Rf4 {[%emt 0:00:10]} Kb3 {[%emt 0:00:07]} 55. Nd1 {[%emt 0:01:43]} a4 {[%emt 0:01:34]} 56. Nc3 {[%emt 0:00:03]} a3 {[%emt 0:00:23]} 57. Nxe4 {[%emt 0:00:07]} fxe4 {[%emt 0:00:08]} 58. Rxf7 {[%emt 0:00:28]} a2 {[%emt 0:01:10]} 59. Ra7 {[%emt 0:00:40]} Rxh4 {[%emt 0:00:34]} 60. Rb7+ {[%emt 0:00:46]} Kc4 {[%emt 0:00:10]} 0-1